[Event "Titled Tuesday Blitz July 26 Early 2022"]
[White "Richter, Nils"]
[Black "Hafiz, Arif Abdul"]
[WhiteFideId "12990809"]
[BlackFideId "7104227"]
[WhiteElo "2311"]
[BlackElo "2198"]
[Result "1-0"]
[Round "10"]
[TimeControl "180+1"]
[Date "2022.07.26"]
[WhiteClock "0:00:50"]
[BlackClock "0:00:02"]

1. d4 {[%clk 0:03:00]}  Nc6 {[%clk 0:03:00]} 2. d5 {[%clk 0:02:49]}  Ne5 {[%clk 0:03:00]} 3. f4 {[%clk 0:02:49]}  Ng6 {[%clk 0:03:00]} 4. e4 {[%clk 0:02:50]}  e5 {[%clk 0:03:00]} 5. dxe6 {[%clk 0:02:51]}  dxe6 {[%clk 0:03:00]} 6. Qxd8+ {[%clk 0:02:50]}  Kxd8 {[%clk 0:03:01]} 7. Nf3 {[%clk 0:02:51]}  Bd7 {[%clk 0:03:00]} 8. Be3 {[%clk 0:02:49]}  Nf6 {[%clk 0:02:57]} 9. Nbd2 {[%clk 0:02:44]}  Ng4 {[%clk 0:02:55]} 10. Bg1 {[%clk 0:02:37]}  Nxf4 {[%clk 0:02:54]} 11. h3 {[%clk 0:02:37]}  Nf6 {[%clk 0:02:52]} 12. O-O-O {[%clk 0:02:37]}  Ke8 {[%clk 0:02:36]} 13. Bh2 {[%clk 0:02:25]}  Ng6 {[%clk 0:02:32]} 14. Bxc7 {[%clk 0:02:25]}  Rc8 {[%clk 0:02:32]} 15. Ba5 {[%clk 0:02:24]}  Bc5 {[%clk 0:02:25]} 16. Kb1 {[%clk 0:02:21]}  Ke7 {[%clk 0:02:20]} 17. e5 {[%clk 0:02:15]}  Nd5 {[%clk 0:02:02]} 18. Ne4 {[%clk 0:02:13]}  b6 {[%clk 0:01:42]} 19. Nxc5 {[%clk 0:02:09]}  Rxc5 {[%clk 0:01:43]} 20. Be1 {[%clk 0:02:07]}  a5 {[%clk 0:01:31]} 21. Bf2 {[%clk 0:02:06]}  Rc6 {[%clk 0:01:26]} 22. Bb5 {[%clk 0:01:59]}  Rc7 {[%clk 0:01:23]} 23. Bxd7 {[%clk 0:01:57]}  Kxd7 {[%clk 0:01:01]} 24. Bxb6 {[%clk 0:01:55]}  Rc6 {[%clk 0:00:58]} 25. Bxa5 {[%clk 0:01:55]}  Rb8 {[%clk 0:00:57]} 26. Nd4 {[%clk 0:01:50]}  Rc5 {[%clk 0:00:54]} 27. Nb3 {[%clk 0:01:49]}  Rc4 {[%clk 0:00:51]} 28. Rhe1 {[%clk 0:01:46]}  Rb5 {[%clk 0:00:48]} 29. Bd2 {[%clk 0:01:45]}  Ke8 {[%clk 0:00:45]} 30. Bc1 {[%clk 0:01:42]}  Nde7 {[%clk 0:00:44]} 31. Nd4 {[%clk 0:01:35]}  Rxe5 {[%clk 0:00:42]} 32. Rxe5 {[%clk 0:01:35]}  Nxe5 {[%clk 0:00:43]} 33. b3 {[%clk 0:01:36]}  Rc8 {[%clk 0:00:42]} 34. Nb5 {[%clk 0:01:36]}  Rb8 {[%clk 0:00:32]} 35. Nd6+ {[%clk 0:01:31]}  Kf8 {[%clk 0:00:32]} 36. a4 {[%clk 0:01:26]}  Nd5 {[%clk 0:00:31]} 37. Bb2 {[%clk 0:01:23]}  Nc6 {[%clk 0:00:29]} 38. c4 {[%clk 0:01:12]}  Ne3 {[%clk 0:00:29]} 39. Rd3 {[%clk 0:01:09]}  Nxg2 {[%clk 0:00:29]} 40. Ba3 {[%clk 0:01:07]}  Kg8 {[%clk 0:00:27]} 41. Nb5 {[%clk 0:01:02]}  f5 {[%clk 0:00:26]} 42. Rg3 {[%clk 0:00:58]}  Nf4 {[%clk 0:00:24]} 43. Bd6 {[%clk 0:00:58]}  Re8 {[%clk 0:00:13]} 44. Bxf4 {[%clk 0:00:58]}  e5 {[%clk 0:00:14]} 45. Bh6 {[%clk 0:00:57]}  g6 {[%clk 0:00:14]} 46. Nd6 {[%clk 0:00:57]}  Rb8 {[%clk 0:00:08]} 47. Nxf5 {[%clk 0:00:56]}  Kf7 {[%clk 0:00:08]} 48. Nd6+ {[%clk 0:00:55]}  Ke6 {[%clk 0:00:08]} 49. Nb5 {[%clk 0:00:56]}  Rd8 {[%clk 0:00:08]} 50. Kc1 {[%clk 0:00:50]}  e4 {[%clk 0:00:06]} 51. Bd2 {[%clk 0:00:49]}  Ne5 {[%clk 0:00:06]} 52. a5 {[%clk 0:00:48]}  Nd3+ {[%clk 0:00:06]} 53. Kc2 {[%clk 0:00:49]}  Rc8 {[%clk 0:00:02]} 54. Re3 {[%clk 0:00:50]}  Ke5 {[%clk 0:00:02]} 55. Rxe4+ {[%clk 0:00:50]} 1-0


[Site "https://www.chess.com"]

[Event "Titled Tuesday Blitz July 26 Early 2022"]
[White "Rios Escobar, Adan"]
[Black "Navarrete Mendez, Gonzalo Alberto"]
[WhiteFideId "3403645"]
[BlackFideId "5106850"]
[WhiteElo "2408"]
[BlackElo "2261"]
[Result "1-0"]
[Round "10"]
[TimeControl "180+1"]
[Date "2022.07.27"]
[WhiteClock "0:00:28"]
[BlackClock "0:00:10"]

1. d4 {[%clk 0:03:00]}  d5 {[%clk 0:03:00]} 2. Nf3 {[%clk 0:03:01]}  Nf6 {[%clk 0:03:00]} 3. g3 {[%clk 0:03:01]}  c5 {[%clk 0:02:59]} 4. Bg2 {[%clk 0:03:01]}  cxd4 {[%clk 0:02:58]} 5. O-O {[%clk 0:03:01]}  h6 {[%clk 0:02:57]} 6. b3 {[%clk 0:03:00]}  Nc6 {[%clk 0:02:56]} 7. Nxd4 {[%clk 0:02:57]}  e5 {[%clk 0:02:56]} 8. Nxc6 {[%clk 0:02:57]}  bxc6 {[%clk 0:02:57]} 9. Bb2 {[%clk 0:02:58]}  Bd6 {[%clk 0:02:55]} 10. c4 {[%clk 0:02:58]}  e4 {[%clk 0:02:55]} 11. Nc3 {[%clk 0:02:55]}  Be6 {[%clk 0:02:55]} 12. cxd5 {[%clk 0:02:32]}  cxd5 {[%clk 0:02:55]} 13. Nb5 {[%clk 0:02:29]}  Be7 {[%clk 0:02:52]} 14. Rc1 {[%clk 0:02:27]}  O-O {[%clk 0:02:37]} 15. Nc7 {[%clk 0:02:26]}  Rc8 {[%clk 0:02:34]} 16. Nxe6 {[%clk 0:02:27]}  fxe6 {[%clk 0:02:35]} 17. Bh3 {[%clk 0:02:27]}  Qd7 {[%clk 0:02:14]} 18. Qd4 {[%clk 0:02:13]}  Rf7 {[%clk 0:01:43]} 19. Rxc8+ {[%clk 0:02:03]}  Qxc8 {[%clk 0:01:44]} 20. Rc1 {[%clk 0:01:52]}  Qd7 {[%clk 0:01:38]} 21. Qe5 {[%clk 0:01:52]}  Qb5 {[%clk 0:00:51]} 22. Bxe6 {[%clk 0:01:21]}  Qxe2 {[%clk 0:00:50]} 23. Bd4 {[%clk 0:01:21]}  Bf8 {[%clk 0:00:21]} 24. Rc7 {[%clk 0:00:56]}  Qd1+ {[%clk 0:00:21]} 25. Kg2 {[%clk 0:00:56]}  Qf3+ {[%clk 0:00:21]} 26. Kh3 {[%clk 0:00:57]}  h5 {[%clk 0:00:16]} 27. Rxf7 {[%clk 0:00:52]}  Kh8 {[%clk 0:00:14]} 28. Rxf8+ {[%clk 0:00:52]}  Kh7 {[%clk 0:00:14]} 29. Qf5+ {[%clk 0:00:46]}  Qxf5+ {[%clk 0:00:13]} 30. Bxf5+ {[%clk 0:00:47]}  Kh6 {[%clk 0:00:13]} 31. Bxf6 {[%clk 0:00:42]}  gxf6 {[%clk 0:00:12]} 32. Rxf6+ {[%clk 0:00:40]}  Kg5 {[%clk 0:00:13]} 33. Rf8 {[%clk 0:00:38]}  e3 {[%clk 0:00:13]} 34. fxe3 {[%clk 0:00:34]}  a5 {[%clk 0:00:13]} 35. Bd3 {[%clk 0:00:33]}  Kh6 {[%clk 0:00:12]} 36. Rf5 {[%clk 0:00:31]}  a4 {[%clk 0:00:12]} 37. bxa4 {[%clk 0:00:31]}  h4 {[%clk 0:00:10]} 38. Kxh4 {[%clk 0:00:31]}  Kg7 {[%clk 0:00:10]} 39. Kg5 {[%clk 0:00:31]}  Kg8 {[%clk 0:00:10]} 40. Kg6 {[%clk 0:00:30]}  d4 {[%clk 0:00:10]} 41. exd4 {[%clk 0:00:28]} 1-0


[Site "https://www.chess.com"]

[Event "Titled Tuesday Blitz July 26 Early 2022"]
[White "Rodchenkov, Sergey D."]
[Black "Shtyka, Sergey"]
[WhiteFideId "4168712"]
[BlackFideId "4138465"]
[WhiteElo "2293"]
[BlackElo "1995"]
[Result "0-1"]
[Round "10"]
[TimeControl "180+1"]
[Date "2022.07.26"]
[WhiteClock "0:01:03"]
[BlackClock "0:01:12"]

1. e4 {[%clk 0:03:00]}  c5 {[%clk 0:02:59]} 2. Nf3 {[%clk 0:03:01]}  d6 {[%clk 0:02:58]} 3. d4 {[%clk 0:03:01]}  cxd4 {[%clk 0:02:59]} 4. Nxd4 {[%clk 0:03:02]}  Nf6 {[%clk 0:02:59]} 5. Nc3 {[%clk 0:03:02]}  g6 {[%clk 0:03:00]} 6. Be3 {[%clk 0:03:02]}  Bg7 {[%clk 0:03:00]} 7. f3 {[%clk 0:03:02]}  O-O {[%clk 0:03:00]} 8. Qd2 {[%clk 0:03:02]}  Nc6 {[%clk 0:03:00]} 9. O-O-O {[%clk 0:03:03]}  d5 {[%clk 0:03:00]} 10. exd5 {[%clk 0:03:04]}  Nxd5 {[%clk 0:03:00]} 11. Nxc6 {[%clk 0:03:05]}  bxc6 {[%clk 0:03:01]} 12. Bd4 {[%clk 0:03:05]}  e5 {[%clk 0:03:01]} 13. Bc5 {[%clk 0:03:05]}  Be6 {[%clk 0:03:01]} 14. Ne4 {[%clk 0:03:05]}  Re8 {[%clk 0:02:58]} 15. h4 {[%clk 0:03:04]}  h6 {[%clk 0:02:58]} 16. h5 {[%clk 0:02:56]}  g5 {[%clk 0:02:58]} 17. g4 {[%clk 0:02:51]}  Qc7 {[%clk 0:02:56]} 18. Bc4 {[%clk 0:02:48]}  Rad8 {[%clk 0:02:54]} 19. Qf2 {[%clk 0:02:48]}  a5 {[%clk 0:02:52]} 20. a4 {[%clk 0:02:48]}  Nf4 {[%clk 0:02:44]} 21. Bxe6 {[%clk 0:02:45]}  Nxe6 {[%clk 0:02:43]} 22. Bb6 {[%clk 0:02:39]}  Rxd1+ {[%clk 0:02:42]} 23. Rxd1 {[%clk 0:02:40]}  Qb8 {[%clk 0:02:40]} 24. Bxa5 {[%clk 0:02:32]}  Qa8 {[%clk 0:02:38]} 25. Qe1 {[%clk 0:02:26]}  Nd4 {[%clk 0:02:36]} 26. b3 {[%clk 0:02:17]}  Nxf3 {[%clk 0:02:32]} 27. Qf2 {[%clk 0:01:55]}  Nd4 {[%clk 0:02:20]} 28. Rf1 {[%clk 0:01:43]}  f5 {[%clk 0:02:05]} 29. gxf5 {[%clk 0:01:41]}  Qxa5 {[%clk 0:02:00]} 30. f6 {[%clk 0:01:38]}  Rf8 {[%clk 0:01:56]} 31. f7+ {[%clk 0:01:28]}  Kh8 {[%clk 0:01:54]} 32. Nxg5 {[%clk 0:01:19]}  Qc3 {[%clk 0:01:33]} 33. Ne4 {[%clk 0:01:13]}  Nxb3+ {[%clk 0:01:30]} 34. Kd1 {[%clk 0:01:07]}  Rd8+ {[%clk 0:01:24]} 35. Ke2 {[%clk 0:01:08]}  Nd4+ {[%clk 0:01:17]} 36. Kd1 {[%clk 0:01:02]}  Nxc2+ {[%clk 0:01:13]} 37. Ke2 {[%clk 0:01:03]}  Qd3# {[%clk 0:01:12]} 0-1


[Site "https://www.chess.com"]

[Event "Titled Tuesday Blitz July 26 Early 2022"]
[White "Rohith Krishna S"]
[Black "Ambartsumova, Karina"]
[WhiteFideId "46617051"]
[BlackFideId "4166299"]
[WhiteElo "2117"]
[BlackElo "2262"]
[Result "1-0"]
[Round "10"]
[TimeControl "180+1"]
[Date "2022.07.26"]
[WhiteClock "0:01:14"]
[BlackClock "0:00:02"]

1. e4 {[%clk 0:03:00]}  c5 {[%clk 0:02:54]} 2. d4 {[%clk 0:03:00]}  cxd4 {[%clk 0:02:54]} 3. Nf3 {[%clk 0:03:00]}  Nc6 {[%clk 0:02:53]} 4. Nxd4 {[%clk 0:03:00]}  Qb6 {[%clk 0:02:53]} 5. Nb3 {[%clk 0:03:00]}  Nf6 {[%clk 0:02:52]} 6. Nc3 {[%clk 0:03:00]}  e6 {[%clk 0:02:52]} 7. Bd3 {[%clk 0:03:00]}  a6 {[%clk 0:02:43]} 8. O-O {[%clk 0:02:57]}  Be7 {[%clk 0:02:41]} 9. Be3 {[%clk 0:02:51]}  Qc7 {[%clk 0:02:41]} 10. h3 {[%clk 0:02:51]}  O-O {[%clk 0:02:40]} 11. a4 {[%clk 0:02:51]}  b6 {[%clk 0:02:38]} 12. Kh1 {[%clk 0:02:47]}  Bb7 {[%clk 0:02:38]} 13. f4 {[%clk 0:02:47]}  d6 {[%clk 0:02:38]} 14. f5 {[%clk 0:02:47]}  Rad8 {[%clk 0:02:26]} 15. Qe1 {[%clk 0:02:45]}  Ne5 {[%clk 0:02:07]} 16. Qf2 {[%clk 0:02:42]}  Nfd7 {[%clk 0:01:57]} 17. Nd4 {[%clk 0:02:42]}  Nc5 {[%clk 0:01:54]} 18. Rad1 {[%clk 0:02:38]}  d5 {[%clk 0:01:13]} 19. exd5 {[%clk 0:02:31]}  Ncxd3 {[%clk 0:01:13]} 20. cxd3 {[%clk 0:02:28]}  exd5 {[%clk 0:01:13]} 21. Qg3 {[%clk 0:02:22]}  Bf6 {[%clk 0:01:09]} 22. Bf4 {[%clk 0:02:19]}  Rfe8 {[%clk 0:01:07]} 23. Rfe1 {[%clk 0:02:18]}  Qc5 {[%clk 0:00:56]} 24. Nc2 {[%clk 0:02:03]}  d4 {[%clk 0:00:50]} 25. Ne4 {[%clk 0:01:35]}  Bxe4 {[%clk 0:00:49]} 26. Rxe4 {[%clk 0:01:36]}  Qxc2 {[%clk 0:00:49]} 27. Rde1 {[%clk 0:01:37]}  Qc6 {[%clk 0:00:23]} 28. Bxe5 {[%clk 0:01:33]}  Bxe5 {[%clk 0:00:22]} 29. Rxe5 {[%clk 0:01:34]}  Rxe5 {[%clk 0:00:20]} 30. Qxe5 {[%clk 0:01:35]}  f6 {[%clk 0:00:15]} 31. Qe7 {[%clk 0:01:33]}  Qd7 {[%clk 0:00:13]} 32. Qb4 {[%clk 0:01:28]}  Qxf5 {[%clk 0:00:08]} 33. Qxb6 {[%clk 0:01:28]}  Rf8 {[%clk 0:00:09]} 34. Qxd4 {[%clk 0:01:27]}  h5 {[%clk 0:00:06]} 35. Qc4+ {[%clk 0:01:27]}  Kh7 {[%clk 0:00:06]} 36. Qxa6 {[%clk 0:01:28]}  Qf2 {[%clk 0:00:06]} 37. Qe6 {[%clk 0:01:27]}  Rd8 {[%clk 0:00:05]} 38. Qe4+ {[%clk 0:01:26]}  Kh8 {[%clk 0:00:06]} 39. b4 {[%clk 0:01:23]}  h4 {[%clk 0:00:05]} 40. Re2 {[%clk 0:01:19]}  Qg3 {[%clk 0:00:05]} 41. Re3 {[%clk 0:01:17]}  Qf2 {[%clk 0:00:05]} 42. Rf3 {[%clk 0:01:17]}  Qd2 {[%clk 0:00:03]} 43. Qxh4+ {[%clk 0:01:17]}  Kg8 {[%clk 0:00:03]} 44. Qc4+ {[%clk 0:01:17]}  Kf8 {[%clk 0:00:02]} 45. a5 {[%clk 0:01:17]}  Qd1+ {[%clk 0:00:02]} 46. Kh2 {[%clk 0:01:17]}  Qa1 {[%clk 0:00:02]} 47. Qc5+ {[%clk 0:01:16]}  Kg8 {[%clk 0:00:02]} 48. Re3 {[%clk 0:01:14]} 1-0


[Site "https://www.chess.com"]

[Event "Titled Tuesday Blitz July 26 Early 2022"]
[White "Rosenberg, Evan S"]
[Black "Harish, Neeraj"]
[WhiteFideId "2019299"]
[BlackFideId "30958130"]
[WhiteElo "2304"]
[BlackElo "1574"]
[Result "0-1"]
[Round "10"]
[TimeControl "180+1"]
[Date "2022.07.27"]
[WhiteClock "0:00:13"]
[BlackClock "0:00:17"]

1. e4 {[%clk 0:03:00]}  c5 {[%clk 0:02:59]} 2. Nc3 {[%clk 0:02:58]}  Nc6 {[%clk 0:02:54]} 3. f4 {[%clk 0:02:58]}  g6 {[%clk 0:02:54]} 4. Nf3 {[%clk 0:02:58]}  Bg7 {[%clk 0:02:54]} 5. a4 {[%clk 0:02:59]}  e6 {[%clk 0:02:53]} 6. e5 {[%clk 0:02:52]}  d5 {[%clk 0:02:48]} 7. d4 {[%clk 0:02:37]}  cxd4 {[%clk 0:02:46]} 8. Nb5 {[%clk 0:02:38]}  Bf8 {[%clk 0:02:37]} 9. Nbxd4 {[%clk 0:02:34]}  Nge7 {[%clk 0:02:35]} 10. Bb5 {[%clk 0:02:31]}  Bg7 {[%clk 0:02:30]} 11. b3 {[%clk 0:02:21]}  O-O {[%clk 0:02:29]} 12. Ba3 {[%clk 0:02:21]}  a6 {[%clk 0:02:24]} 13. Bxc6 {[%clk 0:02:20]}  bxc6 {[%clk 0:02:21]} 14. Bc5 {[%clk 0:02:12]}  Bd7 {[%clk 0:02:05]} 15. a5 {[%clk 0:02:11]}  Re8 {[%clk 0:02:02]} 16. O-O {[%clk 0:02:09]}  Nf5 {[%clk 0:02:00]} 17. Nxf5 {[%clk 0:02:07]}  exf5 {[%clk 0:02:01]} 18. Nd4 {[%clk 0:01:52]}  Bf8 {[%clk 0:01:48]} 19. Bxf8 {[%clk 0:01:49]}  Kxf8 {[%clk 0:01:49]} 20. Qe1 {[%clk 0:01:42]}  Kg7 {[%clk 0:01:48]} 21. Qc3 {[%clk 0:01:40]}  Kg8 {[%clk 0:01:31]} 22. Qc5 {[%clk 0:01:33]}  Qe7 {[%clk 0:01:28]} 23. Qxe7 {[%clk 0:01:24]}  Rxe7 {[%clk 0:01:29]} 24. b4 {[%clk 0:01:24]}  Rb8 {[%clk 0:01:26]} 25. c3 {[%clk 0:01:24]}  Be8 {[%clk 0:01:16]} 26. Rfe1 {[%clk 0:01:18]}  Bd7 {[%clk 0:01:08]} 27. Nb3 {[%clk 0:01:17]}  Be6 {[%clk 0:01:06]} 28. Nc5 {[%clk 0:01:17]}  Ra8 {[%clk 0:01:00]} 29. Rad1 {[%clk 0:01:15]}  Ree8 {[%clk 0:00:58]} 30. Rd4 {[%clk 0:01:14]}  Red8 {[%clk 0:00:51]} 31. Kf2 {[%clk 0:01:13]}  Kf8 {[%clk 0:00:50]} 32. Kg3 {[%clk 0:01:00]}  Ke7 {[%clk 0:00:49]} 33. Red1 {[%clk 0:00:57]}  h6 {[%clk 0:00:42]} 34. h4 {[%clk 0:00:55]}  h5 {[%clk 0:00:41]} 35. Kf3 {[%clk 0:00:54]}  Ke8 {[%clk 0:00:31]} 36. g3 {[%clk 0:00:50]}  Ke7 {[%clk 0:00:31]} 37. Ke3 {[%clk 0:00:44]}  Ke8 {[%clk 0:00:31]} 38. Kd3 {[%clk 0:00:44]}  Ke7 {[%clk 0:00:30]} 39. Kc2 {[%clk 0:00:44]}  Ke8 {[%clk 0:00:27]} 40. Nb7 {[%clk 0:00:41]}  Rd7 {[%clk 0:00:26]} 41. Nd6+ {[%clk 0:00:38]}  Rxd6 {[%clk 0:00:24]} 42. exd6 {[%clk 0:00:38]}  Kd7 {[%clk 0:00:25]} 43. c4 {[%clk 0:00:37]}  Kxd6 {[%clk 0:00:26]} 44. cxd5 {[%clk 0:00:28]}  Bxd5 {[%clk 0:00:24]} 45. Re1 {[%clk 0:00:27]}  c5 {[%clk 0:00:19]} 46. bxc5+ {[%clk 0:00:25]}  Kxc5 {[%clk 0:00:20]} 47. Kc3 {[%clk 0:00:25]}  Rb8 {[%clk 0:00:18]} 48. Re5 {[%clk 0:00:24]}  Rb3+ {[%clk 0:00:17]} 49. Kc2 {[%clk 0:00:22]}  Kxd4 {[%clk 0:00:17]} 50. Rxd5+ {[%clk 0:00:21]}  Kxd5 {[%clk 0:00:18]} 51. Kxb3 {[%clk 0:00:22]}  Kc5 {[%clk 0:00:18]} 52. Kc3 {[%clk 0:00:12]}  Kb5 {[%clk 0:00:19]} 53. Kd4 {[%clk 0:00:11]}  Kxa5 {[%clk 0:00:19]} 54. Kc5 {[%clk 0:00:11]}  f6 {[%clk 0:00:16]} 55. Kc4 {[%clk 0:00:10]}  Kb6 {[%clk 0:00:16]} 56. Kb4 {[%clk 0:00:10]}  a5+ {[%clk 0:00:15]} 57. Ka4 {[%clk 0:00:11]}  Ka6 {[%clk 0:00:16]} 58. Ka3 {[%clk 0:00:11]}  Kb5 {[%clk 0:00:16]} 59. Kb3 {[%clk 0:00:12]}  a4+ {[%clk 0:00:17]} 60. Ka3 {[%clk 0:00:13]}  Ka5 {[%clk 0:00:18]} 61. Ka2 {[%clk 0:00:13]}  Kb4 {[%clk 0:00:19]} 62. Kb2 {[%clk 0:00:14]}  a3+ {[%clk 0:00:19]} 63. Ka2 {[%clk 0:00:15]}  Ka4 {[%clk 0:00:18]} 64. Ka1 {[%clk 0:00:13]}  Kb3 {[%clk 0:00:17]} 65. Kb1 {[%clk 0:00:14]}  Kc3 {[%clk 0:00:16]} 66. Ka2 {[%clk 0:00:13]}  Kd3 {[%clk 0:00:17]} 67. Kxa3 {[%clk 0:00:13]}  Ke3 {[%clk 0:00:17]} 0-1


[Site "https://www.chess.com"]

[Event "Titled Tuesday Blitz July 26 Early 2022"]
[White "Sarana, Alexey"]
[Black "Shimanov, Aleksandr"]
[WhiteFideId "24133795"]
[BlackFideId "4198603"]
[WhiteElo "2666"]
[BlackElo "2605"]
[Result "1-0"]
[Round "10"]
[TimeControl "180+1"]
[Date "2022.07.26"]
[WhiteClock "0:00:21"]
[BlackClock "0:00:02"]

1. d4 {[%clk 0:03:00]}  Nf6 {[%clk 0:02:59]} 2. c4 {[%clk 0:03:01]}  e6 {[%clk 0:02:56]} 3. Nc3 {[%clk 0:03:00]}  d5 {[%clk 0:02:54]} 4. cxd5 {[%clk 0:03:01]}  exd5 {[%clk 0:02:50]} 5. Bg5 {[%clk 0:03:00]}  c6 {[%clk 0:02:50]} 6. e3 {[%clk 0:03:01]}  h6 {[%clk 0:02:50]} 7. Bh4 {[%clk 0:03:00]}  Be7 {[%clk 0:02:50]} 8. Bd3 {[%clk 0:03:01]}  O-O {[%clk 0:02:48]} 9. Nge2 {[%clk 0:03:00]}  Nh5 {[%clk 0:02:44]} 10. Bxe7 {[%clk 0:02:58]}  Qxe7 {[%clk 0:02:45]} 11. Qd2 {[%clk 0:02:56]}  Nd7 {[%clk 0:02:39]} 12. O-O {[%clk 0:02:52]}  Re8 {[%clk 0:02:37]} 13. Rae1 {[%clk 0:02:50]}  Ndf6 {[%clk 0:02:34]} 14. Nc1 {[%clk 0:02:48]}  Qd6 {[%clk 0:02:28]} 15. f3 {[%clk 0:02:47]}  g6 {[%clk 0:02:22]} 16. Nb3 {[%clk 0:02:45]}  Be6 {[%clk 0:01:51]} 17. Bc2 {[%clk 0:02:29]}  Rad8 {[%clk 0:01:46]} 18. e4 {[%clk 0:02:06]}  dxe4 {[%clk 0:01:46]} 19. fxe4 {[%clk 0:02:07]}  Ng4 {[%clk 0:01:16]} 20. e5 {[%clk 0:01:59]}  Qb4 {[%clk 0:00:56]} 21. Re4 {[%clk 0:00:48]}  Bc4 {[%clk 0:00:16]} 22. Rxg4 {[%clk 0:00:38]}  Bxf1 {[%clk 0:00:15]} 23. Qxh6 {[%clk 0:00:38]}  Ng7 {[%clk 0:00:06]} 24. Rh4 {[%clk 0:00:38]}  Kf8 {[%clk 0:00:03]} 25. Qh8+ {[%clk 0:00:38]}  Ke7 {[%clk 0:00:04]} 26. Qxg7 {[%clk 0:00:38]}  Bc4 {[%clk 0:00:04]} 27. Bxg6 {[%clk 0:00:35]}  Kd7 {[%clk 0:00:03]} 28. Bxf7 {[%clk 0:00:32]}  Re7 {[%clk 0:00:03]} 29. e6+ {[%clk 0:00:32]}  Kc7 {[%clk 0:00:03]} 30. Qe5+ {[%clk 0:00:31]}  Rd6 {[%clk 0:00:03]} 31. d5 {[%clk 0:00:29]}  Qb6+ {[%clk 0:00:02]} 32. Kh1 {[%clk 0:00:28]}  Bxd5 {[%clk 0:00:02]} 33. Nxd5+ {[%clk 0:00:22]}  cxd5 {[%clk 0:00:03]} 34. Rd4 {[%clk 0:00:22]}  Qc6 {[%clk 0:00:02]} 35. h3 {[%clk 0:00:21]}  Kb6 {[%clk 0:00:02]} 36. Rb4+ {[%clk 0:00:21]}  Ka6 {[%clk 0:00:02]} 37. Qe2+ {[%clk 0:00:20]}  b5 {[%clk 0:00:02]} 38. a4 {[%clk 0:00:21]} 1-0


[Site "https://www.chess.com"]

[Event "Titled Tuesday Blitz July 26 Early 2022"]
[White "Schwabeneder, Florian"]
[Black "Rustemov, Alexander"]
[WhiteFideId "1626191"]
[BlackFideId "4119002"]
[WhiteElo "2275"]
[BlackElo "2808"]
[Result "0-1"]
[Round "10"]
[TimeControl "180+1"]
[Date "2022.07.26"]
[WhiteClock "0:00:21"]
[BlackClock "0:01:19"]

1. e4 {[%clk 0:03:00]}  e6 {[%clk 0:03:00]} 2. d3 {[%clk 0:03:00]}  d5 {[%clk 0:03:00]} 3. Qe2 {[%clk 0:03:00]}  Nc6 {[%clk 0:02:58]} 4. Nf3 {[%clk 0:03:00]}  e5 {[%clk 0:02:58]} 5. c3 {[%clk 0:02:59]}  Nf6 {[%clk 0:02:57]} 6. Bg5 {[%clk 0:02:53]}  Be7 {[%clk 0:02:53]} 7. Nbd2 {[%clk 0:02:53]}  a5 {[%clk 0:02:51]} 8. a4 {[%clk 0:02:50]}  O-O {[%clk 0:02:51]} 9. g3 {[%clk 0:02:43]}  b6 {[%clk 0:02:42]} 10. Bg2 {[%clk 0:02:40]}  dxe4 {[%clk 0:02:42]} 11. Nxe4 {[%clk 0:02:29]}  Nxe4 {[%clk 0:02:34]} 12. Qxe4 {[%clk 0:02:28]}  Bb7 {[%clk 0:02:24]} 13. Be3 {[%clk 0:02:09]}  Bf6 {[%clk 0:02:14]} 14. O-O {[%clk 0:02:04]}  Qd7 {[%clk 0:02:14]} 15. Rfd1 {[%clk 0:01:56]}  Rab8 {[%clk 0:02:07]} 16. Qc4 {[%clk 0:01:53]}  Rfd8 {[%clk 0:02:05]} 17. Ng5 {[%clk 0:01:41]}  h6 {[%clk 0:01:53]} 18. Bh3 {[%clk 0:01:24]}  Qd5 {[%clk 0:01:47]} 19. Qxd5 {[%clk 0:01:15]}  Rxd5 {[%clk 0:01:48]} 20. Ne4 {[%clk 0:01:01]}  Be7 {[%clk 0:01:47]} 21. Kf1 {[%clk 0:00:55]}  Rbd8 {[%clk 0:01:46]} 22. Ke2 {[%clk 0:00:54]}  Ba6 {[%clk 0:01:47]} 23. c4 {[%clk 0:00:50]}  Rxd3 {[%clk 0:01:29]} 24. Rxd3 {[%clk 0:00:45]}  Bxc4 {[%clk 0:01:29]} 25. Nc3 {[%clk 0:00:21]}  Bxd3+ {[%clk 0:01:20]} 26. Ke1 {[%clk 0:00:21]}  Nb4 {[%clk 0:01:19]} 0-1


[Site "https://www.chess.com"]

[Event "Titled Tuesday Blitz July 26 Early 2022"]
[White "Seo, Jung Min"]
[Black "Kamsky, Gata"]
[WhiteFideId "1734687"]
[BlackFideId "2000024"]
[WhiteElo "2414"]
[BlackElo "2645"]
[Result "1-0"]
[Round "10"]
[TimeControl "180+1"]
[Date "2022.07.26"]
[WhiteClock "0:01:47"]
[BlackClock "0:01:22"]

1. d4 {[%clk 0:03:00]}  f5 {[%clk 0:02:58]} 2. g3 {[%clk 0:02:59]}  Nf6 {[%clk 0:02:58]} 3. Bg2 {[%clk 0:02:59]}  g6 {[%clk 0:02:58]} 4. Nd2 {[%clk 0:02:56]}  Bg7 {[%clk 0:02:58]} 5. e4 {[%clk 0:02:55]}  fxe4 {[%clk 0:02:58]} 6. Nxe4 {[%clk 0:02:56]}  Nxe4 {[%clk 0:02:58]} 7. Bxe4 {[%clk 0:02:56]}  d5 {[%clk 0:02:59]} 8. Bg2 {[%clk 0:02:56]}  Nc6 {[%clk 0:02:55]} 9. Nf3 {[%clk 0:02:52]}  Bg4 {[%clk 0:02:53]} 10. c3 {[%clk 0:02:51]}  e5 {[%clk 0:02:53]} 11. dxe5 {[%clk 0:02:49]}  Nxe5 {[%clk 0:02:52]} 12. h3 {[%clk 0:02:48]}  Bxf3 {[%clk 0:02:51]} 13. Bxf3 {[%clk 0:02:49]}  Nxf3+ {[%clk 0:02:49]} 14. Qxf3 {[%clk 0:02:48]}  Qe7+ {[%clk 0:02:49]} 15. Be3 {[%clk 0:02:38]}  O-O-O {[%clk 0:02:48]} 16. O-O-O {[%clk 0:02:37]}  Qe6 {[%clk 0:02:25]} 17. Qg4 {[%clk 0:02:36]}  Rhe8 {[%clk 0:02:17]} 18. Bg5 {[%clk 0:02:33]}  Rd7 {[%clk 0:02:15]} 19. Qxe6 {[%clk 0:02:21]}  Rxe6 {[%clk 0:02:15]} 20. Rhe1 {[%clk 0:02:22]}  Rxe1 {[%clk 0:02:14]} 21. Rxe1 {[%clk 0:02:22]}  Rf7 {[%clk 0:02:05]} 22. Re7 {[%clk 0:02:19]}  Rxe7 {[%clk 0:02:03]} 23. Bxe7 {[%clk 0:02:19]}  Kd7 {[%clk 0:02:03]} 24. Bg5 {[%clk 0:02:19]}  c5 {[%clk 0:01:59]} 25. Kd2 {[%clk 0:02:18]}  b5 {[%clk 0:01:56]} 26. g4 {[%clk 0:02:16]}  a5 {[%clk 0:01:53]} 27. b3 {[%clk 0:02:14]}  a4 {[%clk 0:01:53]} 28. Be3 {[%clk 0:02:13]}  c4 {[%clk 0:01:43]} 29. bxc4 {[%clk 0:02:05]}  bxc4 {[%clk 0:01:41]} 30. f4 {[%clk 0:02:03]}  Ke6 {[%clk 0:01:42]} 31. Bd4 {[%clk 0:01:54]}  Bxd4 {[%clk 0:01:40]} 32. cxd4 {[%clk 0:01:54]}  h5 {[%clk 0:01:40]} 33. a3 {[%clk 0:01:49]}  hxg4 {[%clk 0:01:22]} 34. hxg4 {[%clk 0:01:48]}  Kf6 {[%clk 0:01:22]} 35. Kc3 {[%clk 0:01:47]} 1-0


[Site "https://www.chess.com"]